bitfinex/quotes_ETHUSD_20260120
["timestamp","ask_amount","ask_price","bid_price","bid_amount"]
[1768924640369,11.23613697,3027.8,3026.6,3.30401572]
[1768924640882,11.23613697,3027.8,3026.9,3.30371006]
[1768924641074,11.23613697,3027.8,3027.0,0.519]
[1768924641376,0.001,3027.9,3027.0,0.519]
[1768924641377,0.001,3027.9,3027.1,0.38227101]
[1768924642591,0.001,3027.9,3027.0,0.519]
[1768924643193,11.23713697,3027.9,3027.1,0.519]
[1768924644685,0.001,3027.9,3027.1,0.519]
[1768924645481,0.001,3027.9,3027.1,2.01118264]
[1768924645687,0.001,3027.9,3027.1,16.41384992]
[1768924645913,0.001,3027.9,3027.2,0.519]
[1768924646195,11.23713697,3027.9,3027.3,0.519]
[1768924647574,11.23713697,3027.9,3026.7,3.30386455]
[1768924647777,11.23713697,3027.9,3026.8,1.959304]
[1768924647963,11.23713697,3027.9,3026.8,13.05847949]
[1768924648167,0.001,3027.9,3027.0,11.09917549]
[1768924648495,0.001,3027.9,3027.1,11.59917549]
[1768924649784,0.001,3027.9,3027.2,11.09917549]
[1768924649983,11.23713697,3027.9,3027.1,0.5]
[1768924650197,11.23713697,3027.9,3027.3,0.519]
[1768924650382,11.23713697,3027.9,3027.3,0.48207749]
[1768924650792,11.23713697,3027.9,3027.4,0.519]
[1768924651207,12.36085067,3027.9,3026.6,11.09917549]
[1768924651408,12.36085067,3027.9,3026.7,0.519]
[1768924651910,15.66346984,3027.9,3026.7,0.519]
[1768924652404,11.23613697,3027.8,3026.7,0.519]
[1768924652612,11.23613697,3027.8,3026.8,1.49221995]
[1768924653279,11.23613697,3027.8,3027.1,0.5]
[1768924653476,11.23613697,3027.8,3027.2,0.519]
[1768924654294,11.23613697,3027.8,3026.8,12.59139544]
[1768924654605,14.53887551,3027.8,3026.9,0.519]
[1768924654807,11.23613697,3027.7,3026.9,1.31103954]
[1768924655005,11.23613697,3027.7,3027.0,0.519]
[1768924655582,11.23613697,3027.7,3026.6,3.30400495]
[1768924655789,11.23613697,3027.7,3026.7,14.92208714]
[1768924656012,11.23613697,3027.7,3026.7,11.61817549]
[1768924656807,11.23613697,3027.7,3026.4,14.40335113]
[1768924657008,4.86923304,3027.7,3026.5,1.44033511]
[1768924657182,11.23613697,3027.6,3026.2,11.09917549]
[1768924657383,11.23613697,3027.6,3026.3,0.519]
[1768924658084,11.23713697,3027.9,3026.5,11.09917549]
[1768924658287,11.23713697,3027.9,3026.7,11.09917549]
[1768924658513,11.23713697,3027.9,3026.9,11.09917549]
[1768924658726,11.23713697,3027.9,3026.9,11.10117549]
[1768924659013,0.001,3027.6,3026.9,11.10117549]
[1768924659218,8.059204,3028.8,3027.0,11.09917549]
[1768924659381,11.56630817,3028.7,3027.2,11.08614334]
[1768924659585,11.23613697,3028.7,3027.3,11.08614334]
[1768924659780,11.23613697,3029.0,3027.3,11.60514334]
[1768924660085,11.23613697,3029.0,3027.7,11.08614334]
[1768924660284,11.23613697,3029.0,3027.9,11.0525237]
[1768924660492,11.23613697,3029.4,3027.9,11.0525237]
[1768924661410,11.23613697,3029.4,3028.0,0.519]
[1768924661986,11.23613697,3029.3,3028.0,0.519]
[1768924662183,11.23613697,3029.3,3027.9,14.35508682]
[1768924662389,11.23613697,3029.1,3028.0,1.95450868]
[1768924662589,11.23613697,3029.1,3028.0,0.519]
[1768924663404,11.23613697,3029.1,3027.7,0.63678871]
[1768924663618,11.23613697,3029.1,3027.8,0.519]
[1768924663813,11.23613697,3029.1,3027.7,0.63678871]
[1768924664013,10.60480386,3028.9,3027.3,3.30323228]
[1768924664217,10.60480386,3028.9,3027.4,0.519]
[1768924664991,10.60480386,3028.9,3027.3,10.02125372]
[1768924664992,10.60480386,3028.9,3027.3,13.3244624]
[1768924665191,10.60480386,3028.9,3027.4,0.519]
[1768924665389,10.52230331,3028.7,3027.5,1.38434624]
[1768924666230,3.30185564,3028.6,3027.5,1.38434624]
[1768924666531,10.52230331,3028.5,3027.5,1.38434624]
[1768924667723,10.52230331,3028.5,3027.6,0.519]
[1768924667898,10.52230331,3028.5,3027.7,0.519]
[1768924668449,10.52230331,3028.4,3027.7,0.519]
[1768924669117,10.52230331,3028.4,3027.8,0.519]
[1768924669440,10.52230331,3028.4,3027.7,0.51817114]
[1768924669608,10.52230331,3028.2,3027.7,0.519]
[1768924669988,10.52230331,3028.2,3026.9,0.002]
[1768924670417,10.52230331,3028.0,3027.0,0.519]
[1768924671623,10.52230331,3028.0,3026.9,0.002]
[1768924671922,10.52230331,3028.0,3027.1,0.519]
[1768924672246,11.90487373,3027.9,3027.1,0.519]
[1768924672397,10.52230331,3027.9,3027.1,0.519]
[1768924672833,0.001,3028.1,3027.1,0.519]
[1768924673134,10.52230331,3028.0,3027.1,0.519]
[1768924673332,11.90487739,3028.0,3027.1,0.519]
[1768924674127,0.001,3028.1,3027.2,10.40198564]
[1768924674502,0.001,3028.1,3027.4,10.40198564]
[1768924674929,10.52230331,3029.2,3027.4,10.40198564]
[1768924675095,11.90464291,3029.1,3027.6,10.40098564]
[1768924675300,11.90464291,3029.1,3027.7,10.89291913]
[1768924675936,11.90464291,3029.1,3027.7,0.519]
[1768924676627,10.52230331,3028.9,3027.7,0.519]
[1768924678444,10.52230331,3028.9,3027.4,10.29472209]
[1768924678628,10.52230331,3028.7,3027.8,0.519]
[1768924679204,3.30185564,3028.6,3027.8,0.519]
[1768924679404,3.30185564,3028.6,3027.5,1.02947221]
[1768924679405,10.52230331,3028.5,3027.5,1.02947221]
[1768924679651,10.52230331,3028.5,3027.1,13.57252847]
[1768924679652,10.52230331,3028.5,3027.6,0.519]
[1768924681075,10.52230331,3028.5,3027.6,10.7626189]
[1768924681735,10.52230331,3028.5,3027.6,0.519]
[1768924682283,10.52230331,3028.8,3027.6,10.71251375]
[1768924682438,10.52230331,3028.8,3027.7,11.26476512]
[1768924682832,3.30146726,3029.0,3027.7,11.26476512]
[1768924682833,10.52230331,3029.5,3027.7,11.26476512]
[1768924683250,6.60153154,3029.6,3027.7,1.07125137]
[1768924683251,10.52230331,3029.1,3027.7,1.07125137]
[1768924683477,10.52230331,3029.1,3027.8,0.519]
[1768924683662,10.52230331,3029.1,3027.9,0.519]
[1768924684159,10.52230331,3028.8,3027.7,0.519]
[1768924684534,10.52330331,3028.2,3027.7,0.519]
[1768924684734,0.001,3028.2,3027.7,0.519]
[1768924684936,10.52330331,3028.2,3027.7,0.519]
[1768924685264,11.57563364,3028.2,3027.5,0.519]
[1768924685999,11.57563364,3028.2,3027.4,0.002]
[1768924686000,10.52330331,3028.2,3027.4,0.002]
[1768924686166,10.52230331,3028.1,3027.4,0.521]
[1768924687885,10.52230331,3028.1,3027.3,0.519]
[1768924688091,10.52230331,3028.1,3027.0,0.002]
[1768924688289,10.52230331,3028.0,3027.0,1.34482427]
[1768924688498,10.52230331,3028.0,3027.1,0.519]
[1768924689083,0.001,3028.2,3027.2,10.05013979]
[1768924689660,10.52330331,3028.2,3027.2,10.05013979]
[1768924689881,10.52330331,3028.2,3027.1,0.519]
[1768924690056,10.52330331,3028.2,3027.2,0.51674225]
[1768924690256,10.52330331,3028.2,3027.1,0.519]
[1768924690477,10.52330331,3028.2,3027.2,0.519]
[1768924690688,10.52330331,3028.2,3027.0,0.002]
[1768924690988,10.52330331,3028.2,3027.2,0.519]
[1768924691881,10.52230331,3028.0,3027.0,0.002]
[1768924692081,10.52230331,3028.0,3027.2,0.519]
[1768924692605,10.52230331,3028.0,3027.0,0.002]
[1768924692792,10.49242731,3028.0,3027.0,0.002]
[1768924693694,11.01042731,3028.0,3027.0,0.002]
[1768924693993,10.52230331,3027.8,3027.0,0.002]
[1768924694181,10.52230331,3027.6,3027.0,0.002]
[1768924697002,10.52230331,3027.6,3027.3,0.002]
[1768924697177,10.52230331,3027.6,3027.0,0.002]
[1768924699888,10.12492893,3027.5,3027.0,0.002]
[1768924702504,10.12492893,3027.5,3026.9,4.1e-06]
[1768924704905,10.12492893,3027.7,3026.9,4.1e-06]
[1768924705092,0.001,3027.8,3026.9,9.72505109]
[1768924705297,0.001,3027.8,3027.1,9.70624514]
[1768924706191,10.12592893,3027.8,3027.0,1.68516777]
[1768924706396,10.12592893,3027.8,3027.0,4.98876527]
[1768924706795,10.12592893,3027.8,3027.0,14.6764355]
[1768924707898,0.001,3027.8,3027.1,9.66942236]
[1768924708083,0.001,3027.8,3027.2,1.46581876]
[1768924708481,10.12592893,3027.8,3026.9,4.1e-06]
[1768924708699,10.12592893,3027.8,3027.0,0.519]
[1768924709811,0.001,3027.5,3027.1,0.519]
[1768924710179,0.001,3027.5,3027.2,0.519]
[1768924710381,0.001,3027.5,3027.2,0.50983083]
[1768924710794,10.12592893,3027.5,3027.1,0.519]
[1768924711018,10.12592893,3027.5,3026.9,4.1e-06]
[1768924711186,0.001,3028.2,3027.3,10.47586987]
[1768924711617,10.64292893,3028.1,3027.0,10.47586987]
[1768924711780,10.64292893,3028.1,3026.9,4.1e-06]
[1768924712297,10.12492893,3028.0,3026.9,10.47587397]
[1768924712496,10.12492893,3028.0,3027.0,1.37796672]
[1768924713118,0.518,3028.1,3027.0,11.85383659]
[1768924714318,10.64292893,3028.1,3027.0,11.85383659]
[1768924714611,0.518,3028.1,3027.1,10.47586987]
[1768924714816,0.518,3028.1,3027.3,10.47586987]
[1768924716389,0.518,3028.1,3027.4,3.30316443]
[1768924716624,0.518,3028.1,3027.5,10.47586987]
[1768924718033,0.518,3028.1,3027.2,15.62533103]
[1768924718341,0.518,3028.1,3027.3,10.47586987]
[1768924718546,0.518,3028.1,3027.4,12.03840297]
[1768924718942,10.64292893,3028.1,3027.5,0.5]
[1768924720544,0.518,3028.1,3027.5,10.97586987]
[1768924721636,0.518,3028.1,3027.8,0.002]
[1768924724521,10.19961476,3028.1,3027.8,0.002]
[1768924724929,10.19961476,3028.1,3027.5,0.002]
[1768924725132,0.518,3028.1,3027.5,10.87964969]
[1768924725448,10.07907844,3028.1,3027.5,1.15456403]
[1768924725945,10.07907844,3028.1,3027.5,0.002]
[1768924726718,0.518,3028.1,3027.5,9.72708566]
[1768924730926,0.518,3028.1,3027.6,9.72508566]
[1768924731455,0.001,3028.2,3027.6,9.72508566]
[1768924731668,0.37068247,3028.1,3027.8,9.72508566]
[1768924731880,0.32322701,3028.1,3027.8,9.72508566]
[1768924732354,0.24220657,3028.1,3027.8,9.72508566]
[1768924732560,0.20021539,3028.1,3027.9,9.72508566]
[1768924734961,9.76129383,3028.1,3027.8,0.002]
[1768924737624,9.76129383,3028.1,3027.5,0.002]
[1768924738052,0.20021539,3028.1,3027.5,9.72708566]
[1768924738252,9.76129383,3028.1,3027.5,1.30503453]
[1768924739159,9.76129383,3028.1,3027.5,11.03012019]
[1768924739464,0.001,3028.2,3027.7,9.72508566]
[1768924739757,0.52,3028.2,3027.7,9.72508566]
[1768924740172,10.08107844,3028.2,3027.5,1.30503453]
[1768924740361,10.08107844,3028.2,3027.5,0.002]
[1768924743047,10.08107844,3028.2,3027.5,9.72708566]
[1768924743606,10.08107844,3028.2,3027.5,13.03011318]
[1768924743738,10.08107844,3028.2,3027.6,9.72508566]
[1768924743941,10.08107844,3028.2,3027.5,0.002]
[1768924744279,10.08107844,3028.2,3027.5,11.030116]
[1768924745640,10.08107844,3028.2,3027.5,1.30503034]
[1768924745868,10.08107844,3028.2,3027.5,11.030116]
[1768924746082,10.08107844,3028.2,3027.5,9.72708566]
[1768924746575,10.08107844,3028.2,3027.5,0.002]
[1768924746764,0.52,3028.2,3027.6,9.72508566]
[1768924747202,0.001,3028.2,3027.9,9.72508566]
[1768924747425,0.519,3028.4,3028.0,14.88337763]
[1768924747564,0.519,3028.4,3028.0,13.02749908]
[1768924747890,0.519,3028.9,3028.1,9.72508566]
[1768924748196,0.519,3028.9,3028.1,11.02783557]
[1768924748353,0.519,3028.9,3028.1,11.52783557]
[1768924748979,9.56107844,3029.2,3028.3,9.72508566]
[1768924749176,10.08007844,3029.2,3028.5,9.72508566]
[1768924749898,0.519,3029.2,3028.5,9.72508566]
[1768924750256,0.519,3029.2,3028.6,9.72508566]
[1768924750961,0.519,3029.2,3028.7,9.72508566]
[1768924751164,0.001,3030.1,3028.8,11.54777979]
[1768924751483,0.519,3030.0,3028.8,10.24508566]
[1768924751794,0.001,3030.1,3028.8,10.24508566]
[1768924751795,0.001,3030.1,3029.0,9.72508566]
[1768924752366,0.519,3030.3,3029.1,9.72508566]
[1768924752593,0.001,3030.4,3028.9,13.2061144]
[1768924752594,0.001,3030.4,3029.4,9.72508566]
[1768924752904,0.519,3030.9,3029.3,9.72508566]
[1768924753060,0.519,3030.9,3029.5,9.72508566]
[1768924753265,9.56107844,3031.5,3029.7,9.72508566]
[1768924753495,9.56107844,3031.3,3029.8,9.72508566]
[1768924753696,9.56107844,3031.3,3030.0,9.72508566]
[1768924753900,9.56107844,3031.2,3030.0,13.02540889]
[1768924754103,9.56107844,3031.2,3030.0,16.32573892]
[1768924754265,9.56107844,3031.2,3030.1,1.78182475]
[1768924754593,9.56107844,3031.2,3030.1,11.50691041]
[1768924755512,0.519,3031.4,3030.1,11.50691041]
[1768924755805,10.52361719,3031.4,3030.1,11.50691041]
[1768924756014,10.52361719,3031.4,3030.3,10.31884793]
[1768924756213,11.57597891,3031.4,3030.4,1.36189601]
[1768924756414,10.52361719,3031.4,3030.4,11.68074394]
[1768924756724,0.519,3031.4,3030.4,11.68074394]
[1768924757891,0.519,3031.4,3030.6,10.31884793]
[1768924758403,10.52361719,3031.8,3030.8,10.31884793]
[1768924759792,10.52361719,3031.8,3030.6,1.3161467]
[1768924760104,10.52361719,3031.8,3030.7,10.31884793]
[1768924760820,0.519,3031.8,3030.7,10.31884793]
[1768924761033,0.519,3031.8,3030.9,10.31884793]
[1768924761197,0.001,3031.5,3031.0,10.83884793]
[1768924762198,0.001,3031.5,3031.0,14.13802637]
[1768924762600,0.001,3031.5,3031.0,17.43726754]
[1768924762800,0.001,3031.5,3031.1,1.74372675]
[1768924763398,0.519,3032.2,3031.1,12.06257468]
[1768924763628,0.51800102,3032.2,3031.2,10.31884793]
[1768924764313,10.52261821,3032.2,3031.3,10.31884793]
[1768924764619,0.001,3032.3,3031.4,11.87073272]
[1768924766020,10.00561719,3032.3,3031.4,11.87073272]
[1768924766693,10.00561719,3032.3,3031.4,15.16952199]
[1768924767389,10.00561719,3032.3,3031.5,10.31884793]
[1768924767593,0.001,3032.3,3031.5,10.31884793]
[1768924767816,0.001,3032.3,3031.6,12.16568071]
[1768924768134,9.83778934,3032.6,3031.8,10.31884793]
[1768924768293,10.00461719,3032.8,3031.8,10.83884793]
[1768924768496,10.00461719,3032.8,3031.9,12.0624286]
[1768924769427,10.52261719,3032.9,3031.9,12.0624286]
[1768924769596,10.52261719,3032.9,3031.9,11.3969986]
[1768924770204,10.52261719,3032.9,3032.1,10.31884793]
[1768924770520,10.00461719,3032.9,3032.2,1.6915154]
[1768924770695,0.518,3033.2,3032.2,12.01036333]
[1768924770696,10.00461719,3033.1,3032.2,12.01036333]
[1768924771323,10.00461719,3033.1,3032.2,12.53036333]
[1768924772123,10.52261719,3033.3,3032.4,10.31884793]
[1768924772430,10.52261719,3033.3,3032.5,1.69145014]
[1768924772600,10.52261719,3033.3,3032.2,1.6915154]
[1768924772931,10.00461719,3033.1,3031.4,10.31884793]
[1768924773093,0.001,3032.6,3031.4,10.31884793]
[1768924773293,10.52261719,3032.5,3031.5,1.03188479]
[1768924773507,10.52261719,3032.5,3031.3,0.52]
[1768924773827,10.00461719,3032.3,3030.9,10.31884793]
[1768924773993,10.00461719,3032.1,3030.6,14.13841573]
[1768924774197,10.00461719,3031.8,3030.6,10.83884793]
[1768924774528,10.00461719,3031.8,3030.6,14.13847884]
[1768924774897,10.00461719,3031.8,3030.6,17.43815547]
[1768924775098,10.00461719,3031.8,3030.7,10.31884793]
[1768924775435,10.00461719,3032.3,3031.0,10.31884793]
[1768924775632,10.52261719,3032.3,3031.0,10.83884793]
[1768924776192,10.52261719,3032.3,3031.2,10.31884793]
[1768924776597,10.00461719,3032.2,3031.0,3.29920327]
[1768924776898,11.05687891,3032.2,3031.0,3.29920327]
[1768924777596,11.05687891,3032.2,3030.9,0.5]
[1768924777797,10.00461719,3032.0,3031.0,1.08188479]
[1768924778022,10.52261719,3031.9,3031.0,6.59842572]
[1768924778328,10.52261719,3031.9,3031.0,3.29918455]
[1768924779417,0.518,3032.3,3031.1,10.31884793]
[1768924779611,0.518,3032.3,3031.3,10.31884793]
[1768924780328,0.518,3032.3,3031.5,10.31884793]
[1768924780627,10.00461719,3032.5,3031.6,12.53049389]
[1768924780827,10.00461719,3032.5,3031.6,10.83884793]
[1768924781200,10.00461719,3032.5,3031.4,16.91645959]
[1768924781400,0.001,3032.6,3031.5,10.83884793]
[1768924781621,0.001,3032.6,3031.7,10.31884793]
[1768924781946,10.00461719,3033.1,3031.8,0.0329837]
[1768924782124,10.00461719,3033.1,3032.0,10.31884793]
[1768924782312,10.00461719,3033.1,3032.1,6.5960885]
[1768924782519,10.52261719,3033.2,3032.2,12.01034157]
[1768924782825,10.52261719,3033.2,3032.2,10.31884793]
[1768924783133,10.52261719,3033.2,3032.1,6.5960885]
[1768924784214,10.52261719,3033.2,3032.1,16.09811015]
[1768924784737,10.52261719,3033.2,3032.2,9.50202165]
[1768924785033,10.52261719,3033.2,3032.3,1.60981102]
[1768924786644,10.52261719,3033.2,3032.3,4.90753571]
[1768924787126,10.00461719,3033.2,3032.3,4.9076227]
[1768924787806,10.00461719,3033.2,3032.3,8.20544943]
[1768924788004,10.00461719,3033.2,3032.3,6.59563841]
[1768924788235,10.00461719,3033.2,3032.3,7.11563841]
[1768924788615,10.00461719,3033.2,3032.3,3.81781168]
[1768924788935,10.00461719,3033.2,3032.3,16.89140419]
[1768924789309,10.00461719,3033.2,3032.3,13.59357746]
[1768924789509,10.00461719,3033.2,3032.4,1.68915041]
[1768924790007,10.00461719,3033.2,3032.2,3.81793041]
[1768924790439,10.00461719,3033.2,3032.3,3.29781265]
[1768924790943,10.00461719,3033.2,3032.2,3.81789927]
[1768924791615,10.00461719,3033.2,3032.2,0.52]
[1768924791809,10.00461719,3033.2,3032.2,1.35937711]
[1768924792009,10.00461719,3033.2,3032.2,4.65729223]
[1768924792209,10.00461719,3033.2,3032.2,3.29791512]
[1768924792432,10.00461719,3033.2,3032.2,16.37161639]
[1768924793438,10.00461719,3033.2,3032.3,9.77576578]
[1768924793952,10.00461719,3033.2,3032.2,3.29791512]
[1768924794853,10.00461719,3033.2,3032.1,3.2979499]
[1768924795023,11.38654318,3033.2,3032.2,1.63718316]
[1768924795449,11.38654318,3033.2,3032.2,4.93511858]
[1768924795649,10.00461719,3033.2,3032.2,8.23305407]
[1768924795953,10.00461719,3033.2,3032.2,4.93511858]
[1768924796138,10.00461719,3033.2,3032.1,3.29799401]
[1768924796349,10.00461719,3033.2,3032.2,3.29792658]
[1768924797322,10.00461719,3033.2,3032.1,3.81800964]
[1768924797532,10.00461719,3033.2,3031.9,13.57576578]
[1768924797730,10.93097016,3033.1,3031.9,7.61820076]
[1768924798223,10.93097016,3033.1,3032.0,3.29812174]
[1768924798424,10.93097016,3033.1,3032.4,0.002]
[1768924798626,9.54903357,3032.8,3032.4,0.002]
[1768924798960,10.06803357,3032.8,3032.4,0.002]
[1768924799458,11.07493693,3032.8,3032.0,0.002]
[1768924799641,11.07493693,3032.8,3032.0,3.30014893]
[1768924800056,11.07493693,3032.8,3032.0,0.002]
[1768924801084,10.06803357,3032.8,3032.0,0.002]
[1768924801560,9.54903357,3032.8,3032.0,0.002]
[1768924801733,9.54903357,3032.8,3032.3,0.5]
[1768924802334,9.54903357,3032.8,3032.0,0.002]
[1768924802560,9.54903357,3032.8,3031.3,0.2355703]
[1768924802734,9.54903357,3032.6,3031.5,9.77576578]
[1768924802933,9.54903357,3032.6,3031.7,9.77576578]
[1768924803169,9.54903357,3032.8,3031.8,0.52]
[1768924803468,9.54903357,3032.8,3031.8,0.37567]
[1768924803698,9.54903357,3032.8,3031.8,3.67400353]
[1768924803871,10.55593693,3032.8,3031.8,4.37128022]
[1768924804071,10.55593693,3032.8,3031.8,1.07292137]
[1768924804274,9.54903357,3032.7,3031.3,0.002]
[1768924804474,4.30420527,3032.8,3031.3,0.002]
[1768924804475,9.54903357,3032.5,3031.3,0.002]
[1768924805389,9.54903357,3032.5,3030.9,0.52]
[1768924805390,9.54903357,3032.5,3030.8,3.29940364]
[1768924805548,9.54903357,3032.3,3030.8,6.59891776]
[1768924805878,0.001,3032.9,3030.9,9.77576578]
[1768924805879,9.54903357,3032.1,3030.9,9.77576578]
[1768924806063,9.54903357,3032.4,3031.1,16.13829158]
[1768924806271,9.54903357,3032.2,3031.1,16.13829158]
[1768924806458,9.54903357,3032.2,3031.2,9.77576578]
[1768924806878,10.06803357,3032.2,3031.2,9.77576578]
[1768924807048,10.06803357,3032.2,3031.3,11.38959494]
[1768924807441,10.06803357,3032.2,3031.4,6.59761166]
[1768924807641,9.54903357,3032.2,3031.4,6.59761166]
[1768924807994,9.54903357,3032.8,3031.6,9.77576578]
[1768924808148,9.54903357,3032.8,3031.7,10.29576578]
[1768924809180,9.54903357,3032.8,3031.7,0.52]
[1768924809387,9.54903357,3032.8,3031.6,1.62589433]
[1768924809566,9.54903357,3032.8,3031.3,4.91266262]
[1768924809567,12.84642533,3032.7,3031.3,4.91270765]
[1768924809748,9.54903357,3032.6,3030.5,9.77576578]
[1768924809948,6.59478352,3032.7,3030.5,9.77576578]
[1768924809949,9.54903357,3032.4,3030.9,3.29928796]
[1768924810183,9.54903357,3032.4,3030.7,3.2994924]
[1768924810476,9.54903357,3032.4,3031.1,3.29906528]
[1768924810681,9.54903357,3032.4,3030.8,9.77576578]
[1768924810884,6.59478352,3032.7,3030.9,0.97757658]
[1768924810885,9.54903357,3031.8,3030.9,0.97757658]
[1768924811066,9.54903357,3031.8,3031.0,3.29919911]
[1768924811792,9.54903357,3031.8,3030.5,9.77576578]
[1768924812089,9.54903357,3031.8,3030.9,3.29934922]
[1768924812288,9.54903357,3031.8,3031.0,0.16023492]
[1768924812447,0.001,3031.9,3030.9,16.27099994]
[1768924812647,0.001,3031.9,3031.0,9.77576578]
[1768924812878,0.519,3032.3,3031.0,10.00933608]
[1768924813079,0.519,3032.3,3031.1,11.75615781]
[1768924813478,10.06803357,3032.3,3031.1,11.75615781]
[1768924813644,10.06803357,3032.3,3031.2,19.90640652]
[1768924813850,10.06803357,3032.3,3031.3,0.52]
[1768924814258,10.06803357,3032.3,3031.2,3.29902348]
[1768924814459,9.54903357,3032.1,3031.2,3.29902348]
[1768924814778,9.54903357,3032.1,3031.1,3.29909711]
[1768924814988,9.54903357,3032.1,3031.1,3.29911962]
[1768924815284,9.54903357,3032.1,3031.1,6.59825194]
[1768924815471,9.54903357,3032.1,3030.6,9.77576578]
[1768924815673,9.60173825,3031.9,3030.8,6.59891776]
[1768924815874,0.001,3032.9,3030.9,9.49632353]
[1768924815875,9.60173825,3032.2,3030.9,9.49632353]
[1768924816178,10.12073825,3032.2,3030.9,9.49632353]
[1768924816864,10.12073825,3032.2,3031.0,9.49632353]
[1768924817080,10.12073825,3032.2,3031.2,9.49632353]
[1768924817292,10.12073825,3032.2,3031.3,0.01198099]
[1768924817582,10.12073825,3032.2,3031.2,0.52]
[1768924817786,10.12073825,3032.2,3031.1,0.52]
[1768924818098,10.12073825,3032.2,3031.2,3.29900708]
[1768924818403,10.61381208,3032.1,3031.2,3.29900708]
[1768924819257,10.61381208,3032.1,3031.1,0.52]
[1768924819555,10.61381208,3032.1,3031.1,3.29911582]
[1768924819958,9.60173825,3032.0,3030.9,3.81928]
[1768924820196,9.60173825,3031.8,3031.0,6.59846422]
[1768924820382,0.519,3031.8,3031.1,0.01190515]
[1768924820688,0.519,3031.8,3031.0,16.09478775]
[1768924820862,10.12073825,3032.1,3031.1,9.49632353]
[1768924821058,0.001,3032.9,3031.0,6.59846422]
[1768924821059,10.12073825,3032.4,3031.2,11.10580231]
[1768924821268,10.12073825,3032.4,3031.3,10.0282132]
[1768924821568,10.12073825,3032.4,3031.3,10.01632353]
[1768924821972,10.12073825,3032.4,3031.4,16.09393519]
[1768924822170,0.001,3032.9,3031.5,11.15771705]
[1768924822171,10.12073825,3032.7,3031.5,11.15771705]
[1768924822785,0.001,3031.9,3031.5,11.15771705]
[1768924822985,9.95391041,3032.7,3031.5,11.15771705]
[1768924823475,9.95391041,3032.7,3031.3,3.29885919]
[1768924823719,9.43491041,3032.7,3031.4,9.49632353]
[1768924823909,9.43491041,3032.7,3031.6,9.49632353]
[1768924824102,9.43491041,3032.7,3031.7,0.52]
[1768924824305,9.43491041,3032.7,3031.8,1.00163235]
[1768924824695,9.43491041,3032.7,3031.7,0.52]
[1768924824892,9.43491041,3032.7,3031.5,6.59739402]
[1768924825079,9.43491041,3032.7,3031.6,0.52]
[1768924825708,9.60173825,3032.6,3031.6,0.52]
[1768924825910,9.60173825,3032.6,3031.5,3.29869701]
[1768924826223,10.61381208,3032.6,3031.6,0.3818697]
[1768924827210,10.61381208,3032.6,3031.6,9.87819323]
[1768924827398,10.61381208,3032.6,3031.6,0.3818697]
[1768924828220,10.61381208,3032.6,3031.3,3.29889366]
[1768924828397,10.61381208,3032.6,3031.6,3.298587]
[1768924829295,10.61381208,3032.6,3031.6,6.5971752]
[1768924830002,11.13281208,3032.6,3031.6,16.09349873]
[1768924830203,0.519,3032.6,3031.6,16.09349873]
[1768924830529,0.519,3032.6,3031.7,9.49632353]
[1768924830734,0.52,3032.9,3031.7,9.49632353]
[1768924830940,0.52,3032.9,3031.9,9.49632353]
[1768924831096,0.52,3032.9,3032.0,10.01632353]
[1768924832126,0.52,3032.9,3032.1,16.09241203]
[1768924832517,0.001,3032.9,3032.2,9.49632353]
[1768924832827,0.001,3032.9,3032.3,1.6092412]
[1768924833138,0.001,3032.9,3032.4,10.01632353]
[1768924833333,0.001,3032.9,3032.4,0.52]
[1768924834032,0.001,3032.9,3032.5,3.29760923]
[1768924834225,9.60273825,3032.9,3032.3,1.6092412]
[1768924834434,9.60273825,3032.9,3032.2,3.29790241]
[1768924835000,9.60273825,3032.9,3031.8,2.46120869]
[1768924835336,0.001,3032.9,3032.4,3.29767763]
[1768924835642,0.001,3032.9,3032.2,0.52]
[1768924835837,0.001,3032.9,3032.4,3.29761336]
[1768924836044,0.001,3032.9,3032.2,0.52]
[1768924836253,0.001,3032.9,3032.3,9.89348019]
[1768924836417,0.001,3032.9,3032.4,0.98934802]
[1768924836617,9.60173825,3033.4,3032.4,0.98934802]
[1768924836801,0.519,3033.5,3032.4,10.48567155]
[1768924837005,0.519,3033.5,3032.6,9.49632353]
[1768924837201,9.60173825,3033.7,3032.7,10.49795588]
[1768924837500,9.60173825,3033.7,3032.4,0.98934802]
[1768924837501,10.12073825,3033.7,3032.4,0.98934802]
[1768924837723,9.60173825,3033.5,3031.4,9.49632353]
[1768924837916,9.60173825,3033.5,3031.7,0.52]
[1768924838133,9.60173825,3033.3,3031.8,3.3003706]
[1768924838431,9.60173825,3033.1,3031.8,3.3003706]
[1768924839011,9.60173825,3033.1,3031.8,6.5987412]
[1768924839221,9.60173825,3032.9,3031.9,10.18918026]
[1768924839414,0.519,3032.8,3031.9,10.15619765]
[1768924840036,9.60173825,3032.9,3031.9,10.15619765]
[1768924840333,10.12073825,3032.9,3032.0,3.81815303]
[1768924840641,1.01207383,3032.8,3031.9,7.25638212]
[1768924840819,0.519,3032.9,3031.9,16.75270565]
[1768924841015,0.519,3032.9,3032.0,9.49632353]
[1768924841217,9.60173825,3033.4,3032.2,9.49632353]
[1768924841422,9.60173825,3033.4,3032.3,10.96925088]
[1768924841423,10.12073825,3033.4,3032.3,10.96925088]
[1768924841621,0.519,3033.4,3032.3,10.96925088]
[1768924841951,10.12073825,3033.4,3032.3,10.96925088]
[1768924842244,9.60173825,3033.4,3032.4,16.09175947]
[1768924842452,0.519,3033.7,3032.5,11.58256995]
[1768924842453,10.12073825,3033.7,3032.5,11.58256995]
[1768924844133,10.12073825,3033.7,3032.6,9.89250147]
[1768924844331,9.54419547,3033.8,3032.7,9.11544888]
[1768924844544,9.54419547,3033.8,3032.6,3.29750049]
[1768924846053,9.54419547,3033.8,3031.9,0.65987412]
[1768924846260,9.56779013,3033.6,3032.0,7.11730606]
[1768924846418,9.56779013,3033.4,3032.0,7.11730606]
[1768924847560,9.56779013,3033.4,3032.0,10.41545909]
[1768924847763,9.56779013,3033.4,3032.0,20.23858554]
[1768924848058,9.56779013,3033.2,3032.5,0.002]
[1768924849712,9.56779013,3033.0,3032.5,0.002]
[1768924850623,0.519,3033.1,3032.5,0.002]
[1768924851274,0.52,3033.5,3032.6,0.032975]
[1768924851711,0.52,3033.5,3032.5,11.33193681]
[1768924851880,0.52,3033.5,3032.5,0.98781036]